fUSD/lending_fUSD_20250103
["ID","MTS","AMOUNT","RATE_DAILY","PERIOD"]
[347503567,1735887930618,-1075.88,9.554e-05,2]
[347503568,1735887930645,-4951.66,9.554e-05,2]
[347503569,1735887930669,-1524.79,9.554e-05,2]
[347503570,1735887930693,-5974.99,9.554e-05,2]
[347503571,1735887930717,-6343.4,9.554e-05,2]
[347503572,1735887930740,-500.0,9.554e-05,2]
[347503573,1735887930765,-1939.6,9.554e-05,2]
[347503574,1735887930789,-1473.46,9.554e-05,2]
[347503575,1735887930813,-9482.48,9.554e-05,2]
[347503576,1735887930839,-3609.09,9.554e-05,2]
[347503577,1735887930863,-3015.86,9.554e-05,2]
[347503578,1735887930888,-500.0,9.554e-05,2]
[347503579,1735887930912,-1317.79,9.555e-05,2]
[347503580,1735887930936,-500.0,9.555e-05,2]
[347503581,1735887930960,-838.54,9.555e-05,2]
[347503582,1735887930985,-500.0,9.555e-05,2]
[347503583,1735887931009,-500.0,9.555e-05,2]
[347503584,1735887931035,-500.0,9.555e-05,2]
[347503585,1735887931059,-501.48334771,9.555e-05,2]
[347503586,1735887931083,-546.74,9.555e-05,2]
[347503587,1735887931109,-604.7,9.555e-05,2]
[347503588,1735887931134,-500.0,9.555e-05,2]
[347503589,1735887931159,-937.36,9.555e-05,2]
[347503590,1735887931185,-500.0,9.555e-05,2]
[347503591,1735887931209,-500.0,9.555e-05,2]
[347503592,1735887931233,-500.0,9.555e-05,2]
[347503593,1735887931257,-754.59,9.555e-05,2]
[347503594,1735887931281,-500.0,9.555e-05,2]
[347503595,1735887931307,-3379.91,9.555e-05,2]
[347503596,1735887931331,-3379.91,9.555e-05,2]
[347503597,1735887931354,-500.0,9.555e-05,2]
[347503598,1735887931378,-500.0,9.555e-05,2]
[347503599,1735887931402,-500.0,9.555e-05,2]
[347503600,1735887931426,-763.85,9.555e-05,2]
[347503601,1735887931452,-500.0,9.555e-05,2]
[347503602,1735887931476,-519.36,9.555e-05,2]
[347503603,1735887931500,-500.0,9.555e-05,2]
[347503604,1735887931526,-500.0,9.555e-05,2]
[347503605,1735887931550,-500.0,9.555e-05,2]
[347503606,1735887931576,-500.0,9.555e-05,2]
[347503607,1735887931601,-500.0,9.555e-05,2]
[347503608,1735887931627,-1293.7,9.555e-05,2]
[347503609,1735887931651,-500.0,9.555e-05,2]
[347503610,1735887931676,-987.22,9.555e-05,2]
[347503611,1735887931701,-500.0,9.555e-05,2]
[347503612,1735887931724,-595.82,9.555e-05,2]
[347503613,1735887931748,-1288.46,9.555e-05,2]
[347503614,1735887931772,-500.0,9.555e-05,2]
[347503615,1735887931797,-500.0,9.555e-05,2]
[347503616,1735887931821,-500.0,9.555e-05,2]
[347503617,1735887931845,-500.0,9.555e-05,2]
[347503618,1735887931869,-709.5,9.555e-05,2]
[347503619,1735887931892,-241.66655328,9.555e-05,2]
[347503620,1735887931915,-500.0,9.555e-05,2]
[347503621,1735887931939,-500.57572372,9.555e-05,2]
[347503622,1735887931963,-500.0,9.555e-05,2]
[347503623,1735887931988,-500.0,9.555e-05,2]
[347503624,1735887932015,-337.67165663,9.555e-05,2]
[347503625,1735887937394,150.0,8.581e-05,2]
[347503626,1735887937550,150.0,9.058e-05,2]
[347503627,1735887938383,150.0,8.581e-05,2]
[347503628,1735887942009,150.0,8.581e-05,2]
[347503629,1735887960710,227.84,8.668e-05,2]
[347503630,1735888033472,1000.0,8.705e-05,2]
[347503631,1735888064142,500.0,9.553e-05,7]
[347503632,1735888064387,500.0,9.827e-05,7]
[347503633,1735888064633,587.24,0.00010101,7]
[347503634,1735888112005,250.0,8.67e-05,2]
[347503635,1735888152535,1385.93,8.219e-05,2]
[347503636,1735888221301,160442.0,0.0002,120]
[347503645,1735888232041,-613.77,9.452e-05,2]
[347503646,1735888232177,-600.0,9.452e-05,2]
[347503647,1735888232189,-518.94,9.452e-05,2]
[347503648,1735888232200,-375.839991,9.452e-05,2]
[347503649,1735888232211,-271.5,9.452e-05,2]
[347503650,1735888232223,-1396.009309,9.452e-05,2]
[347503651,1735888232234,-1940.73576686,9.453e-05,2]
[347503652,1735888232243,-150.0,9.534e-05,2]
[347503653,1735888232254,-150.0,9.534e-05,2]
[347503654,1735888232263,-3519.22565058,9.534e-05,2]
[347503655,1735888232276,-11868.39549697,9.534e-05,2]
[347503735,1735888243225,-6434.9470912,9.534e-05,2]
[347503736,1735888243237,-1194.84227338,9.534e-05,2]
[347503737,1735888243276,-348.68377726,9.534e-05,2]
[347503742,1735888245419,-31408.90571061,9.534e-05,2]
[347503743,1735888245428,-21577.35649882,9.534e-05,2]
[347503744,1735888245452,-282.55999991,9.534e-05,2]
[347503745,1735888245464,-1574.41188128,9.534e-05,2]
[347503746,1735888245474,-3145.90570151,9.534e-05,2]
[347503747,1735888245492,-4459.53243585,9.534e-05,2]
[347503748,1735888245604,-12548.23348263,9.534e-05,2]
[347503749,1735888245613,-9818.0,9.534e-05,2]
[347503750,1735888245622,-22777.47001933,9.534e-05,2]
[347503751,1735888245631,-500.0,9.551e-05,2]
[347503752,1735888245640,-500.0,9.551e-05,2]
[347503753,1735888245649,-748.22,9.551e-05,2]
[347503754,1735888245658,-2931.0,9.551e-05,2]
[347503755,1735888245667,-3321.92,9.551e-05,2]
[347503756,1735888245676,-8937.91,9.551e-05,2]
[347503757,1735888245685,-4247.3,9.551e-05,2]
[347503758,1735888245695,-4560.3,9.551e-05,2]
[347503759,1735888245704,-8138.81,9.551e-05,2]
[347503760,1735888245713,-6263.98,9.551e-05,2]
[347503761,1735888245722,-29916.35,9.551e-05,2]
[347503762,1735888245731,-500.0,9.551e-05,2]
[347503763,1735888245740,-3472.74,9.551e-05,2]
[347503764,1735888245749,-3567.63,9.551e-05,2]
[347503765,1735888245760,-500.0,9.551e-05,2]
[347503766,1735888245769,-2509.16,9.551e-05,2]
[347503767,1735888245778,-4601.22,9.551e-05,2]
[347503768,1735888245788,-8262.5,9.551e-05,2]
[347503769,1735888245796,-1851.6,9.551e-05,2]
[347503770,1735888245805,-1171.594262,9.551e-05,2]
[347503771,1735888245815,-17873.14,9.551e-05,2]
[347503772,1735888245823,-155.317427,9.551e-05,2]
[347503773,1735888245832,-8905.26,9.551e-05,2]
[347503774,1735888245841,-176.570246,9.551e-05,2]
[347503775,1735888245850,-4648.43,9.551e-05,2]
[347503776,1735888245859,-418.427178,9.551e-05,2]
[347503777,1735888245867,-1445.6,9.551e-05,2]
[347503778,1735888245876,-3365.46,9.551e-05,2]
[347503779,1735888245886,-6218.19,9.551e-05,2]
[347503781,1735888245895,-2296.89,9.551e-05,2]
[347503783,1735888245904,-2394.55,9.551e-05,2]
[347503784,1735888245913,-1740.27,9.551e-05,2]
[347503785,1735888245922,-500.0,9.551e-05,2]
[347503786,1735888245931,-2216.9,9.551e-05,2]
[347503787,1735888245940,-3864.12,9.551e-05,2]
[347503788,1735888245951,-500.0,9.551e-05,2]
[347503789,1735888245959,-500.0,9.551e-05,2]
[347503790,1735888245968,-500.0,9.552e-05,2]
[347503791,1735888245978,-500.0,9.552e-05,2]
[347503792,1735888245997,-500.0,9.552e-05,2]
[347503793,1735888246007,-500.0,9.552e-05,2]
[347503794,1735888246017,-500.0,9.552e-05,2]
[347503795,1735888246027,-500.0,9.552e-05,2]
[347503797,1735888246038,-500.0,9.552e-05,2]
[347503799,1735888246048,-500.0,9.552e-05,2]
[347503801,1735888246058,-500.0,9.552e-05,2]
[347503803,1735888246067,-500.0,9.552e-05,2]
[347503806,1735888246078,-500.0,9.552e-05,2]
[347503808,1735888246087,-500.0,9.552e-05,2]
[347503810,1735888246103,-500.0,9.552e-05,2]
[347503812,1735888246113,-500.0,9.552e-05,2]
[347503813,1735888246124,-500.0,9.552e-05,2]
[347503814,1735888246133,-500.0,9.552e-05,2]
[347503815,1735888246144,-500.0,9.552e-05,2]
[347503816,1735888246154,-500.0,9.552e-05,2]
[347503817,1735888246163,-500.0,9.552e-05,2]
[347503818,1735888246172,-500.0,9.552e-05,2]
[347503819,1735888246182,-3748.95,9.552e-05,2]
[347503820,1735888246192,-500.0,9.552e-05,2]
[347503821,1735888246203,-500.0,9.552e-05,2]
[347503822,1735888246213,-500.0,9.552e-05,2]
[347503823,1735888246223,-614.16,9.552e-05,2]
[347503824,1735888246232,-500.0,9.552e-05,2]
[347503825,1735888246242,-500.0,9.552e-05,2]
[347503826,1735888246252,-500.0,9.552e-05,2]
[347503827,1735888246263,-500.0,9.552e-05,2]
[347503828,1735888246275,-500.0,9.552e-05,2]
[347503829,1735888246285,-500.0,9.552e-05,2]
[347503830,1735888246294,-500.0,9.552e-05,2]
[347503831,1735888246304,-500.0,9.552e-05,2]
[347503832,1735888246316,-500.0,9.552e-05,2]
[347503833,1735888246327,-500.0,9.552e-05,2]
[347503834,1735888246336,-500.0,9.552e-05,2]
[347503835,1735888246347,-500.0,9.552e-05,2]
[347503836,1735888246358,-500.0,9.552e-05,2]
[347503837,1735888246368,-500.0,9.552e-05,2]
[347503838,1735888246378,-1164.15,9.552e-05,2]
[347503839,1735888246391,-500.0,9.552e-05,2]
[347503840,1735888246401,-3028.36,9.552e-05,2]
[347503841,1735888246410,-500.0,9.552e-05,2]
[347503842,1735888246419,-500.0,9.552e-05,2]
[347503844,1735888246430,-500.0,9.552e-05,2]
[347503846,1735888246439,-650.02,9.552e-05,2]
[347503847,1735888246450,-500.0,9.552e-05,2]
[347503848,1735888246460,-500.0,9.552e-05,2]
[347503849,1735888246469,-500.0,9.552e-05,2]
[347503850,1735888246481,-500.0,9.552e-05,2]
[347503851,1735888246490,-500.0,9.552e-05,2]
[347503852,1735888246501,-500.0,9.552e-05,2]
[347503853,1735888246511,-2895.49,9.552e-05,2]
[347503854,1735888246521,-914.74,9.552e-05,2]
[347503855,1735888246530,-500.0,9.552e-05,2]
[347503856,1735888246539,-500.0,9.552e-05,2]
[347503857,1735888246550,-500.0,9.552e-05,2]
[347503858,1735888246560,-638.81,9.552e-05,2]
[347503859,1735888246569,-500.0,9.552e-05,2]
[347503860,1735888246578,-1905.37,9.552e-05,2]
[347503861,1735888246588,-1159.96,9.552e-05,2]
[347503862,1735888246598,-500.0,9.552e-05,2]
[347503863,1735888246607,-500.0,9.552e-05,2]
[347503864,1735888246617,-500.0,9.552e-05,2]
[347503865,1735888246626,-1084.63,9.552e-05,2]
[347503866,1735888246636,-2125.49,9.552e-05,2]
[347503867,1735888246645,-1879.7,9.552e-05,2]
[347503868,1735888246655,-680.95,9.552e-05,2]
[347503869,1735888246664,-500.0,9.552e-05,2]
[347503870,1735888246674,-522.33,9.552e-05,2]
[347503871,1735888246684,-1122.8,9.552e-05,2]
[347503872,1735888246694,-500.0,9.552e-05,2]
[347503873,1735888246703,-500.0,9.552e-05,2]
[347503874,1735888246712,-5508.01,9.552e-05,2]
[347503875,1735888246722,-500.0,9.552e-05,2]
[347503876,1735888246731,-614.44,9.552e-05,2]
[347503877,1735888246741,-699.53,9.552e-05,2]
[347503878,1735888246751,-500.0,9.552e-05,2]
[347503879,1735888246760,-500.0,9.552e-05,2]
[347503880,1735888246770,-1308.72,9.552e-05,2]
[347503881,1735888246780,-500.0,9.552e-05,2]
[347503882,1735888246789,-1725.1,9.552e-05,2]
[347503883,1735888246800,-2078.07,9.552e-05,2]
[347503884,1735888246809,-4696.73,9.552e-05,2]
[347503885,1735888246818,-500.0,9.552e-05,2]
[347503886,1735888246827,-1031.93,9.552e-05,2]
[347503887,1735888246836,-331.80960325,9.552e-05,2]
[347503888,1735888246845,-500.0,9.552e-05,2]
[347503889,1735888246854,-598.63,9.552e-05,2]
[347503890,1735888246863,-500.0,9.552e-05,2]
[347503891,1735888246873,-500.0,9.552e-05,2]
[347503892,1735888246883,-500.0,9.552e-05,2]
[347503893,1735888246892,-330.96729135,9.552e-05,2]
[347503894,1735888246903,-1824.52,9.552e-05,2]
[347503895,1735888246912,-884.1,9.552e-05,2]
[347503896,1735888246921,-500.0,9.552e-05,2]
[347503897,1735888246931,-2067.21,9.552e-05,2]
[347503898,1735888246940,-1965.34,9.552e-05,2]
[347503899,1735888246950,-2723.92,9.552e-05,2]
[347503900,1735888246959,-500.0,9.552e-05,2]
[347503901,1735888246969,-500.0,9.552e-05,2]
[347503902,1735888246979,-1742.69,9.552e-05,2]
[347503903,1735888246989,-893.4,9.552e-05,2]
[347503904,1735888246999,-500.0,9.552e-05,2]
[347503905,1735888247008,-500.0,9.552e-05,2]
[347503906,1735888247018,-1164.67,9.552e-05,2]
[347503907,1735888247027,-528.48,9.552e-05,2]
[347503908,1735888247036,-500.0,9.552e-05,2]
[347503909,1735888247047,-1082.61,9.552e-05,2]
[347503910,1735888247060,-1612.72,9.552e-05,2]
[347503911,1735888247071,-993.11,9.552e-05,2]
[347503912,1735888247081,-1285.86,9.552e-05,2]
[347503913,1735888247092,-849.69,9.552e-05,2]
[347503914,1735888247102,-500.0,9.552e-05,2]
[347503915,1735888247113,-1096.3,9.552e-05,2]
[347503916,1735888247123,-500.0,9.552e-05,2]
[347503917,1735888247132,-500.0,9.552e-05,2]
[347503918,1735888247142,-500.0,9.552e-05,2]
[347503919,1735888247152,-500.0,9.552e-05,2]
[347503920,1735888247162,-1386.16,9.552e-05,2]
[347503921,1735888247172,-500.0,9.552e-05,2]
[347503922,1735888247183,-500.0,9.552e-05,2]
[347503923,1735888247192,-500.0,9.552e-05,2]
[347503924,1735888247202,-500.0,9.552e-05,2]
[347503925,1735888247211,-2455.99,9.552e-05,2]
[347503926,1735888247222,-500.0,9.552e-05,2]
[347503927,1735888247231,-500.0,9.552e-05,2]
[347503928,1735888247240,-500.0,9.552e-05,2]
[347503929,1735888247250,-500.0,9.552e-05,2]
[347503930,1735888247259,-500.0,9.552e-05,2]
[347503931,1735888247269,-2110.6,9.552e-05,2]
[347503932,1735888247279,-500.0,9.552e-05,2]
[347503933,1735888247289,-500.0,9.552e-05,2]
[347503934,1735888247313,-500.0,9.552e-05,2]
[347503935,1735888247336,-3747.53,9.552e-05,2]
[347503936,1735888247357,-1325.41,9.552e-05,2]
[347503937,1735888247379,-500.0,9.552e-05,2]
[347503938,1735888247401,-500.0,9.552e-05,2]
[347503939,1735888247422,-500.0,9.552e-05,2]
[347503940,1735888247443,-2590.63,9.552e-05,2]
[347503941,1735888247465,-594.82,9.552e-05,2]
[347503942,1735888247487,-3986.42,9.552e-05,2]
[347503943,1735888247510,-1100.46,9.552e-05,2]
[347503944,1735888247532,-3652.08,9.552e-05,2]
[347503945,1735888247553,-500.0,9.552e-05,2]
[347503946,1735888247570,-159.51989053,9.552e-05,2]
[347503947,1735888247580,-500.0,9.552e-05,2]
[347503948,1735888247589,-638.0206737,9.552e-05,2]
[347503949,1735888247598,-500.0,9.552e-05,2]
[347503950,1735888247608,-500.0,9.552e-05,2]
[347503951,1735888247617,-500.0,9.552e-05,2]
[347503952,1735888247627,-500.0,9.552e-05,2]
[347503953,1735888247636,-1191.89,9.552e-05,2]
[347503954,1735888247646,-500.0,9.552e-05,2]
[347503955,1735888247655,-2237.03,9.552e-05,2]
[347503956,1735888247664,-1061.54,9.552e-05,2]
[347503957,1735888247673,-500.0,9.552e-05,2]
[347503958,1735888247683,-500.0,9.552e-05,2]
[347503959,1735888247692,-514.36580123,9.552e-05,2]
[347503960,1735888247701,-500.0,9.552e-05,2]
[347503961,1735888247710,-268.45665564,9.552e-05,2]
[347503962,1735888247719,-610.7,9.552e-05,2]
[347503963,1735888247728,-500.0,9.552e-05,2]
[347503964,1735888247738,-500.0,9.552e-05,2]
[347503965,1735888247747,-644.65,9.552e-05,2]
[347503966,1735888247756,-1194.51,9.552e-05,2]
[347503967,1735888247767,-500.0,9.552e-05,2]
[347503968,1735888247776,-500.0,9.552e-05,2]
[347503969,1735888247785,-1424.53,9.552e-05,2]
[347503970,1735888247794,-747.63,9.552e-05,2]
[347503971,1735888247804,-500.0,9.552e-05,2]
[347503972,1735888247813,-4024.99,9.552e-05,2]
[347503973,1735888247822,-3334.26,9.552e-05,2]
[347503974,1735888247831,-500.0,9.552e-05,2]
[347503975,1735888247842,-500.0,9.552e-05,2]
[347503976,1735888247853,-7276.15,9.552e-05,2]
[347503977,1735888247863,-500.0,9.552e-05,2]
[347503978,1735888247872,-3679.88,9.552e-05,2]
[347503979,1735888247882,-735.97,9.552e-05,2]
[347503980,1735888247893,-846.04,9.552e-05,2]
[347503981,1735888247903,-778.63,9.552e-05,2]
[347503982,1735888247912,-500.0,9.552e-05,2]
[347503983,1735888247922,-538.34531851,9.552e-05,2]
[347503984,1735888247931,-1006.82,9.552e-05,2]
[347503985,1735888247940,-500.0,9.552e-05,2]
[347503986,1735888247948,-500.0,9.552e-05,2]
[347503987,1735888247957,-363.1194558,9.552e-05,2]
[347503988,1735888247966,-3340.68,9.552e-05,2]
[347503989,1735888247975,-745.43,9.552e-05,2]
[347503990,1735888247984,-500.0,9.552e-05,2]
[347503991,1735888247993,-500.0,9.552e-05,2]
[347503992,1735888248002,-647.41,9.552e-05,2]
[347503993,1735888248011,-3094.57,9.552e-05,2]
[347503994,1735888248020,-500.0,9.552e-05,2]
[347503995,1735888248030,-578.24,9.552e-05,2]
[347503996,1735888248040,-1454.44,9.552e-05,2]
[347503997,1735888248049,-2126.45,9.552e-05,2]
[347503998,1735888248058,-500.0,9.552e-05,2]
[347503999,1735888248067,-500.0,9.552e-05,2]
[347504000,1735888248077,-500.0,9.552e-05,2]
[347504001,1735888248086,-2116.13,9.552e-05,2]
[347504002,1735888248095,-1511.83,9.552e-05,2]
[347504003,1735888248105,-500.0,9.552e-05,2]
[347504004,1735888248114,-500.0,9.552e-05,2]
[347504005,1735888248123,-500.0,9.552e-05,2]
[347504006,1735888248132,-500.0,9.552e-05,2]
[347504007,1735888248142,-2379.41,9.552e-05,2]
[347504008,1735888248151,-500.0,9.552e-05,2]
[347504009,1735888248161,-500.0,9.552e-05,2]
[347504010,1735888248170,-500.0,9.552e-05,2]
[347504011,1735888248180,-1107.3,9.552e-05,2]
[347504012,1735888248189,-2402.56603716,9.552e-05,2]
[347504013,1735888249154,-1907.67398131,9.552e-05,2]
[347504014,1735888249864,-500.0,9.551e-05,2]
[347504015,1735888249873,-2792.27565339,9.552e-05,2]
[347504016,1735888249884,-273.33799993,9.552e-05,2]
[347504017,1735888249925,-500.0,9.551e-05,2]
[347504018,1735888249934,-13550.48632821,9.552e-05,2]
[347504019,1735888249943,-1611.99,9.552e-05,2]
[347504020,1735888249952,-2140.85,9.552e-05,2]
[347504021,1735888249961,-500.0,9.552e-05,2]
[347504022,1735888249970,-182.06335781,9.552e-05,2]
[347504023,1735888249979,-982.41,9.552e-05,2]
[347504024,1735888249988,-500.0,9.552e-05,2]
[347504025,1735888249997,-1591.3,9.552e-05,2]
[347504026,1735888250005,-500.0,9.552e-05,2]
[347504027,1735888250016,-1851.6,9.552e-05,2]
[347504028,1735888250025,-2999.42,9.552e-05,2]
[347504029,1735888250035,-1851.6,9.552e-05,2]
[347504030,1735888250044,-10904.5,9.552e-05,2]
[347504031,1735888250053,-500.0,9.552e-05,2]
[347504032,1735888250062,-500.0,9.552e-05,2]
[347504033,1735888250071,-500.0,9.552e-05,2]
[347504034,1735888250080,-500.0,9.552e-05,2]
[347504035,1735888250090,-1134.67,9.552e-05,2]
[347504036,1735888250099,-500.0,9.552e-05,2]
[347504037,1735888250107,-500.0,9.552e-05,2]
[347504038,1735888250117,-500.0,9.552e-05,2]
[347504039,1735888250127,-2546.04,9.552e-05,2]
[347504040,1735888250136,-2211.5,9.552e-05,2]
[347504041,1735888250147,-509.06050431,9.552e-05,2]
[347504042,1735888250156,-500.0,9.552e-05,2]
[347504043,1735888250166,-500.0,9.552e-05,2]
[347504044,1735888250175,-500.0,9.552e-05,2]
[347504045,1735888250184,-500.0,9.552e-05,2]
[347504046,1735888250193,-500.0,9.552e-05,2]
[347504047,1735888250203,-930.68,9.552e-05,2]
[347504048,1735888250212,-1452.9,9.552e-05,2]
[347504049,1735888250222,-500.91887538,9.552e-05,2]
[347504050,1735888250233,-572.84,9.552e-05,2]
[347504051,1735888250243,-2968.43,9.552e-05,2]
[347504052,1735888250253,-500.0,9.552e-05,2]
[347504053,1735888250262,-500.0,9.552e-05,2]
[347504054,1735888250273,-500.0,9.552e-05,2]
[347504055,1735888250283,-500.0,9.552e-05,2]
[347504056,1735888250293,-500.0,9.552e-05,2]
[347504057,1735888250304,-2664.27,9.552e-05,2]
[347504058,1735888250313,-1116.28,9.552e-05,2]
[347504059,1735888250322,-500.0,9.552e-05,2]
[347504060,1735888250331,-500.0,9.552e-05,2]
[347504061,1735888250341,-500.0,9.552e-05,2]
[347504062,1735888250350,-7876.92,9.552e-05,2]
[347504063,1735888250359,-500.0,9.552e-05,2]
[347504064,1735888250368,-500.0,9.552e-05,2]
[347504065,1735888250380,-500.0,9.552e-05,2]
[347504066,1735888250395,-500.0,9.552e-05,2]
[347504067,1735888250405,-500.0,9.552e-05,2]
[347504068,1735888250414,-500.0,9.552e-05,2]
[347504069,1735888250424,-500.0,9.552e-05,2]
[347504070,1735888250435,-500.0,9.552e-05,2]
[347504071,1735888250446,-500.0,9.552e-05,2]
[347504072,1735888250455,-500.0,9.552e-05,2]
[347504073,1735888250465,-500.0,9.552e-05,2]
[347504074,1735888250474,-500.0,9.552e-05,2]
[347504075,1735888250483,-500.0,9.552e-05,2]
[347504076,1735888250492,-1936.73,9.552e-05,2]
[347504077,1735888250500,-500.0,9.552e-05,2]
[347504078,1735888250509,-290.63764367,9.552e-05,2]
[347504079,1735888250519,-500.0,9.552e-05,2]
[347504080,1735888250528,-3241.23,9.552e-05,2]
[347504081,1735888250536,-393.11159803,9.552e-05,2]
[347504082,1735888250545,-575.15466026,9.552e-05,2]
[347504083,1735888250554,-500.0,9.552e-05,2]
[347504084,1735888250563,-500.0,9.552e-05,2]
[347504085,1735888250572,-2721.06,9.552e-05,2]
[347504086,1735888250581,-500.0,9.552e-05,2]
[347504087,1735888250590,-500.0,9.552e-05,2]
[347504088,1735888250599,-1236.18,9.552e-05,2]
[347504089,1735888250608,-500.0,9.552e-05,2]
[347504090,1735888250617,-500.0,9.552e-05,2]
[347504091,1735888250626,-500.0,9.552e-05,2]
[347504092,1735888250635,-500.0,9.552e-05,2]
[347504093,1735888250644,-9068.43,9.552e-05,2]
[347504094,1735888250654,-500.0,9.552e-05,2]
[347504095,1735888250663,-513.17,9.552e-05,2]
[347504096,1735888250674,-417.30515528,9.552e-05,2]
[347504097,1735888250684,-500.0,9.552e-05,2]
[347504098,1735888250694,-562.16,9.552e-05,2]
[347504099,1735888250703,-1864.11,9.552e-05,2]
[347504100,1735888250712,-500.0,9.552e-05,2]
[347504101,1735888250723,-815.68,9.552e-05,2]
[347504102,1735888250733,-697.92,9.552e-05,2]
[347504103,1735888250742,-500.0,9.552e-05,2]
[347504104,1735888250751,-500.0,9.552e-05,2]
[347504105,1735888250760,-500.0,9.552e-05,2]
[347504106,1735888250770,-500.0,9.552e-05,2]
[347504107,1735888250779,-500.0,9.552e-05,2]
[347504108,1735888250788,-500.0,9.552e-05,2]
[347504109,1735888250796,-479.31367613,9.552e-05,2]
[347504110,1735888250805,-500.0,9.552e-05,2]
[347504111,1735888250814,-10810.19,9.552e-05,2]
[347504112,1735888250823,-500.0,9.552e-05,2]
[347504113,1735888250832,-3825.62,9.552e-05,2]
[347504114,1735888250841,-500.0,9.552e-05,2]
[347504115,1735888250849,-500.0,9.552e-05,2]
[347504116,1735888250858,-500.0,9.552e-05,2]
[347504117,1735888250867,-672.24,9.552e-05,2]
[347504118,1735888250877,-3272.77,9.552e-05,2]
[347504119,1735888250886,-500.0,9.552e-05,2]
[347504120,1735888250897,-503.28,9.552e-05,2]
[347504121,1735888250906,-500.0,9.553e-05,2]
[347504122,1735888250915,-500.0,9.553e-05,2]
[347504123,1735888250924,-500.0,9.553e-05,2]
[347504124,1735888250934,-500.0,9.553e-05,2]
[347504125,1735888250943,-500.0,9.553e-05,2]
[347504126,1735888250953,-500.0,9.553e-05,2]
[347504127,1735888250964,-500.0,9.553e-05,2]
[347504128,1735888250976,-621.26,9.553e-05,2]
[347504129,1735888250985,-500.0,9.553e-05,2]
[347504130,1735888250994,-500.0,9.553e-05,2]
[347504131,1735888251003,-500.0,9.553e-05,2]
[347504132,1735888251012,-500.0,9.553e-05,2]
[347504133,1735888251024,-500.0,9.553e-05,2]
[347504134,1735888251033,-500.0,9.553e-05,2]
[347504135,1735888251043,-646.54133657,9.553e-05,2]
[347504136,1735888251054,-500.0,9.553e-05,2]
[347504137,1735888251063,-649.97,9.553e-05,2]
[347504138,1735888251074,-500.0,9.553e-05,2]
[347504139,1735888251085,-500.0,9.553e-05,2]
[347504140,1735888251095,-500.0,9.553e-05,2]
[347504141,1735888251104,-500.0,9.553e-05,2]
[347504142,1735888251113,-513.05,9.553e-05,2]
[347504143,1735888251123,-500.0,9.553e-05,2]
[347504144,1735888251134,-532.69,9.553e-05,2]
[347504145,1735888251143,-1853.13,9.553e-05,2]
[347504146,1735888251152,-500.0,9.553e-05,2]
[347504147,1735888251162,-500.0,9.553e-05,2]
[347504148,1735888251172,-500.0,9.553e-05,2]
[347504149,1735888251181,-500.0,9.553e-05,2]
[347504150,1735888251190,-500.0,9.553e-05,2]
[347504151,1735888251199,-1072.08,9.553e-05,2]
[347504152,1735888251208,-500.0,9.553e-05,2]
[347504153,1735888251217,-1532.82,9.553e-05,2]
[347504154,1735888251227,-500.0,9.553e-05,2]
[347504155,1735888251236,-1971.37,9.553e-05,2]
[347504156,1735888251246,-500.0,9.553e-05,2]
[347504157,1735888251256,-500.0,9.553e-05,2]
[347504158,1735888251265,-500.0,9.553e-05,2]
[347504159,1735888251274,-500.0,9.553e-05,2]
[347504160,1735888251283,-3480.06,9.553e-05,2]
[347504161,1735888251292,-500.0,9.553e-05,2]
[347504162,1735888251301,-1007.62,9.553e-05,2]
[347504163,1735888251310,-591.83,9.553e-05,2]
[347504164,1735888251319,-2051.81,9.553e-05,2]
[347504165,1735888251328,-500.0,9.553e-05,2]
[347504166,1735888251337,-500.0,9.553e-05,2]
[347504167,1735888251346,-187.7786724,9.553e-05,2]
[347504168,1735888251355,-886.23,9.553e-05,2]
[347504169,1735888251364,-500.0,9.553e-05,2]
[347504170,1735888251373,-500.0,9.553e-05,2]